{"text_format":"1","workbook":"xlsx","n_sheets":6,"sheets":["Início","ISO","MANUAL TRL","ETAPA 1","ETAPA 2","RESULTADO"],"not_rendered":{"charts":0,"images":10,"macros":1,"external_links":0,"defined_names":13,"comments":0,"pivot_tables":0},"unopened":[],"bounds":{"document_bytes":16777216,"sheet_cells":100000,"rows_first":2000,"rows_last":500,"rows_between":2000,"halvings":0,"cell_chars":16384,"cell_head_chars":4096},"cells_cut":0,"cells_raw":0,"read":"whole","date_system":"1900"}

{"sheet":"Início","index":0,"n_rows":27,"n_cols":6,"rows_kept":27,"cut":false,"hidden":false,"merged":[[4,5,4,17],[3,5,3,18],[25,2,25,10],[26,2,27,10],[6,5,6,18],[10,3,16,20],[17,6,17,19],[21,3,22,9]]}
[]
[]
[]
[null,null,null,null,null,"Instituto de Aeronáutica e Espaço- Observatório Tecnológico  (VDIR-CT-OT) "]
[null,null,null,null,null,"Programa de Pós Graduação em Ciências e Tecnologias Espaciais -CTE"]
[]
[null,null,null,null,null,"Nível de Maturidade Tecnológica- TRL"]
[]
[null,null,null,"O QUE É ?"]
[]
[null,null,null,"“TRL é uma ferramenta de demonstração que avalia a maturidade de uma tecnologia, produto ou projeto. Auxilia os tomadores de decisão a obter exatidão de quão distante o resultado está. Ajuda a manter os projetos dentro de um determinado custo, prazo e esforço pré-estabelecidos. Viabiliza aos interessados um entendimento comum aos gestores, técnicos e pesquisadores. Definindo o status que a tecnologia se encontra, facilitando feedbacks, comparações de tecnologias e futuras tomadas de decisões.”          "]
[]
[]
[]
[]
[]
[]
[]
[]
[null,null,null,"A CALCULADORA FOI ADAPTADA E REGULAMENTADA COM BASE NAS NORMAS DA ABNT NBR ISO 16290:2015"]
[]
[]
[]
[]
[]
[null,null,"Autores: Msc. Daiane Rocha   "]
[null,null,"        Dr. Francisco Cristóvão Lourenço de Melo"]

{"sheet":"ISO","index":1,"n_rows":21,"n_cols":16,"rows_kept":21,"cut":false,"hidden":false,"merged":[[11,3,11,7],[11,9,11,13],[3,18,4,19],[5,3,6,5],[6,6,6,12],[10,3,10,7],[10,9,10,13],[10,15,10,19],[12,3,12,7],[12,9,12,13],[12,15,12,19],[13,3,13,7],[13,9,13,13],[13,15,13,19],[14,3,14,7],[14,9,14,13],[14,15,14,19],[15,3,15,7],[15,9,15,13],[15,15,15,19],[16,3,16,7],[16,9,16,13],[16,15,16,19],[17,3,17,7],[17,9,17,13],[17,15,17,19],[20,3,20,7],[20,9,20,13],[20,15,20,19],[18,3,18,7],[18,9,18,13],[18,15,18,19],[19,3,19,7],[19,9,19,13],[19,15,19,19]]}
[]
[]
[]
[]
[]
[null,null,null,"ABNT BNR 16290"]
[null,null,null,null,null,null,"Tabela Resumida Check List"]
[]
[]
[]
[null,null,null,"Nível de Maturidade Tecnológica ",null,null,null,null,null,"Marco alcançado para o elemento",null,null,null,null,null,"Realização de trabalho (documentado)"]
[]
[null,null,null,"TRL 1: Principios básicos observados e reportados ",null,null,null,null,null,"As aplicações potenciais são identificados na sequência das observações básicas, mas elemento conceito ainda não fomulado",null,null,null,null,null,"Expressão dos princípios básicos destinados a serem utilizados . Identificação de potenciais aplicações ."]
[null,null,null,"TRL 2:  Conceito tecnológico e\\ou aplicação formulados",null,null,null,null,null,"Formulação de potenciais aplicações e conceito elemento perliminar. Nenhuma prova de conceito ainda.",null,null,null,null,null,"Formulação de aplicações potenciais . conceito preliminar do elemento, proporcionando compreensão de como seriam utilizados os princípios básicos"]
[null,null,null,"TRL 3: Prova de conceito experimental e analítica, da função crítica e/ou característica",null,null,null,null,null,"Elemento conceito é elaborado e desempenho exceção é demonstrada através de modelos analíticos apoiados por dados \\ características experimentais.",null,null,null,null,null,"Requisitos de desempenho preliminares ( pode direcionar várias missões ), incluindo definição de requisitos de desempenho funcional .  "]
[null,null,null,"TRL 4:  Validação funcional do componente e/ou “breadboard” em ambiente de laboratório.",null,null,null,null,null,"Elemento desempenho funcional é demonstrada por meio de testes em ambiente de laboratório breadboad",null,null,null,null,null,"Projeto conceitual do elemento."]
[null,null,null,"TRL 5: Validação funcional do componente e/ou “breadboard” em ambiente de relevante.",null,null,null,null,null,"Funções críticas do elemento são identificados ea envioment relevantes associados é definida . Breadboards não em grande escala são construídos para verificar o desempenho através de testes no ambiente relevantes , sujeitos a efeitos de escala .",null,null,null,null,null,"Entradas de dados experimentais, definição experimento em laboratório e os resultados ."]
[null,null,null,"TRL 6: Demonstração do modelo ou protótipo do sistema/subsistema em ambiente relevante.",null,null,null,null,null,"Funções críticas do elemento são verificados , o desempenho é demonstrado no ambiente relevante e modelos representativos em forma , ajuste e função",null,null,null,null,null,"Elemento modelos analíticos para a prova-de- conceito."]
[null,null,null,"TRL 7: Demonstração do protótipo do sistema em ambiente espacial.",null,null,null,null,null,"O desempenho é demonstrada para o ambiente opeational , no chão ou , se necessário, no espaço . Um modelo representativo , refletindo plenamente todos os aspectos do design do modelo de vôo , é construído e testado com margens adequadas para demonstrar o desempenho no ambiente operacional.",null,null,null,null,null,"Requisitos de desempenho preliminares ( pode direcionar várias missões ) com definição de requisitos de desempenho funcional. Projeto conceitual do elemento. plano de teste de desempenho funcional. definição placa de ensaio para a verificação do desempenho funcional . relatórios de teste placa de ensaio ."]
[null,null,null,"TRL 8: Sistema real completo e qualificado em vôo por meio de testes e demonstração.",null,null,null,null,null,"Modelo de vôo é qualificado e integrado no sistema final pronto para o vôo.",null,null,null,null,null,"Definição preliminar de requisitos de desempenho e do ambiente relevante. A identificação e análise das funções críticas do elemento. Projeto preliminar do elemento, suportado por modelos apropriados para a verificação funções críticas. plano de teste de função crítica. Análise dos efeitos de escala . definição placa de ensaio para a verificação da função crítica. relatórios de teste placa de ensaio ."]
[null,null,null,"TRL 9 : Sistema real testado em vôo por meio de operações com missão alcançada.",null,null,null,null,null,"Tecnologia está madura . O elemento é sucesso em serviço para a missão atribuída no ambiente operacional real",null,null,null,null,null,"Definição de requierements desempenho e do ambiente em causa . A identificação e análise das funções críticas do elemento. Projeto do elemento, suportado por modelos apropriados para a verificação funções críticas. plano de teste de função crítica. definição de modelo para as verificações de funções críticas. relatórios de ensaio modelo ."]

{"sheet":"MANUAL TRL","index":2,"n_rows":80,"n_cols":1,"rows_kept":80,"cut":false,"hidden":false,"merged":[]}
["INTRODUÇÃO"]
["Technology Readiness Levels (Nível de Maturidade Tecnológica) que tem por acrônimo doravante TRL consiste em uma metodologia de demonstração do status da tecnologia avaliada. Sua utilização permite aos usuários um entendimento comum do grau de desenvolvimento tecnológico.  "]
["Além desse a metodologia TRL traz outros benefícios para quem a utiliza:"]
["Se aplicada nas tecnologias antes de inseri-las nos projetos diminui o risco de estouro em orçamentos e atrasos no cronograma. Afirmação está feita por Freire (2006) que apresenta em seu trabalho uma tabela do GAO – Escritório de Responsabilidade do Governo dos Estados Unidos da América, em que:"]
["Os projetos que utilizaram tecnologias com TRL a baixo de 6 obtiveram um crescimento de 101 % no orçamento previsto e um atraso de 120 % no cronograma, já os projetos que utilizaram apenas tecnologias com TRL a cima de 6 não tiveram modificação nos orçamentos e cronogramas previstos. (Freire, 2006)."]
["Confirmando o estudo de Freire, Almeida (2008) relaciona o sucesso do projeto com o nível de maturidade tecnológica, em que: Solucionar os problemas tecnológicos antes do desenvolvimento do projeto, pode reduzir em até 10 vezes seus prazos e custos."]
[" Resolver os problemas tecnológicos antes do desenvolvimento do produto ser iniciado pode reduzir em até 10 vezes os prazos e custos do projeto, relacionando então o sucesso do projeto com o nível de maturidade tecnológica. (Almeida, 2008)."]
["Devido aos benefícios do TRL a metodologia foi difundida e disseminada, sendo utilizado por diversas agenciais e laboratórios do setor aeroespacial e demais setores.  "]
["Algumas das principais empresas e agências que utilizam a metodologia são:"]
[]
["A exploração dos “Rediness Levels- RLs” não ficou somente no setor aeroespacial, Nolte (2011) levantou que a metodologia dos “RLs” difundiu para 12 setores, gerando 58 “RLs” diferentes onde 20 são relacionados a maturidade tecnológica."]
["Com a finalidade de padronizar o entendimento dos níveis de maturidade tecnológica para o setor aeroespacial, foi criada em 2013 a ISO 16290:2013 que define os critérios básicos de cada um dos 9 níveis.  Essa teve sua tradução realizada em 2015 com a NBR ISO 16290:2015."]
["O desenvolvimento do Manual de Aplicação de TRL na Calculadora TRL IAE/ITA – 2016 deu-se baseado nos critérios da NBR ISO 16290:2015, e nas publicações das metodologias utilizadas pelas agências espaciais: Europeia- ESA e Americana- NASA e pelos laboratórios DoD- Departamento de Defesa Americano e AFRL- Laboratório de Pesquisa da Força Aérea dos EUA."]
["METODOLOGIA TRL"]
["A metodologia TRL foi desenvolvida na década de 60-70 por Stan Sadin, um pesquisador da NASA. Inicialmente eram 7 os níveis de maturidade tecnológica e em 1995 a escala evoluiu para 9 o número de níveis tecnológicos que se mantém até os dias atuais. Os níveis criados em 95 foram mantidos pela NBR ISO 16290:2015, são estes:"]
[]
["A metodologia aqui proposta foi desenvolvida com base nos 9 níveis de maturidade tecnológica. O processo de avaliação ocorre em 6 aspectos conforme a metodologia utilizada no DoD e na ESA.  O layout do processo de avaliação deu-se baseado no TRL Calculator desenvolvido pelo AFRL. O processo de transformar em perguntas os requisitos da ISO 16290:2015 acrescentando os requisitos econômicos, técnicos, político-legais e documentais na avaliação foi baseado na metodologia utilizada pela ESA e NASA."]
["APLICANDO TRL"]
["O processo de avaliação para identificação do nível de maturidade tecnológica dá-se em 6 aspectos. Sendo estes:"]
["v  1. Decisão da aplicação: aspecto relacionado ao “tempo” ou seja, quando realizar a avaliação de TRL e com que frequência realiza-la."]
[]
["A decisão de quando realizar uma avaliação deve ser um chamado da alta gestão da instituição competente (GUIDANCE, 2011).  Rocha (2016) demonstra que a frequência da avaliação pode ser estabelecida de duas formas: ser pré-estabelecida (ou seja, ter um calendário “tempo” marcado para ocorrer) ou quando realizar um up grade tecnológico (ou seja, troca de algum componente por outro mais avançado, prática essa identificada por Olechowski (2015) onde então deve-se decidir realizar a avaliação somente no componente modificado ou no projeto como um todo como preconiza a NASA)."]
[]
[]
["v  2. Definição da equipe: quem irá realizar a avaliação, quais pessoas serão envolvidas no processo de avaliação."]
["Para realizar a avaliação de TRL é necessário membros que tenham o conhecimento da missão, do sistema como um todo e do ambiente operacional."]
["Rocha (2016) identifica como pessoas essenciais para responder ao processo de avaliação: o pesquisador (conhecedor da tecnologia avaliada), o gestor (responsável pela missão do projeto), e o conhecedor do ambiente operacional."]
["Rocha (2016) aborda também a importância do facilitador como membro para realizar a avaliação sendo necessária a presença de um ou mais facilitadores. O facilitador é um membro externo com conhecimento da metodologia e opinião imparcial, focando em forçar a objetividade da avaliação e orientar o processo de realização (FERENCE, 2012)."]
[]
["v  3. Identificação das tecnologias: quais as tecnologias serão avaliadas."]
[]
["Deve ser realizada avaliação de maturidade tecnológica em todas as tecnologias desenvolvidas presentes nos projetos em desenvolvimento, e em tecnologias em processo de desenvolvimento. "]
[]
["v  4. Recolha dos materiais: analise documental."]
[]
["Para realizar a avaliação é necessário o aporte total da documentação do projeto (tecnologia) a ser avaliado (ROCHA, 2016). Somente com a documentação em mãos é realizado o processo de avaliação (checklist), ou seja, o processo de responder ao questionário na próxima etapa."]
[]
["v  5. Avaliação TRL"]
["O processo da avaliação ocorre por meio de reuniões. Nas reuniões estão presentes: a equipe pré-estipulada para responder ao questionário e os documentos em mãos para realização do checklist. O questionário para avaliação utilizado encontra-se no aplicativo denominado “Calculadora TRL IAE/ITA-2016” desenvolvido no software Microsoft Excel. Nas reuniões para avaliação das tecnologias ocorrem três passos:"]
[]
["Passo 1- Demonstração da metodologia de avaliação TRL: esse primeiro passo consiste em unificar o entendimento de todos os presentes nas reuniões de avaliação do que vem a ser TRL."]
["Definindo então TRL, conforme Figura 3:"]
["“TRL é uma ferramenta de demonstração que avalia a maturidade de uma tecnologia, produto ou projeto. Auxilia os tomadores de decisão a obter exatidão de quão distante o resultado está. Ajuda a manter os projetos dentro de um determinado custo, prazo e esforço pré-estabelecidos. Viabiliza aos interessados um entendimento comum aos gestores, técnicos e pesquisadores. Definindo o status que a tecnologia se encontra, facilitando feedbacks, comparações de tecnologias e futuras tomadas de decisões.”          (Calculadora TRL IAE/ITA – 2016)."]
[]
["No aplicativo encontra-se também a disposição o checklist na Norma NBR ISO 16290:2015 presente no botão NBR ISO 16290:2015 para consulta, conforme demonstrado na Figura 4; o botão voltar presente nessa Figura (4) volta a página inicial (Figura 3). O botão de iniciar presenta na página inicial, conforme Figura 3, leva a avaliação para o passo 2."]
[]
["Passo 2- Dados da tecnologia a ser avaliada: (Esse segundo passo, consiste na segunda janela aberta no aplicativo da Calculadora TRL IAE/ITA-2016, conforme Figura 5) É o fichamento de identificação da tecnologia (nome da tecnologia, respondedor responsável pela tecnologia e data da avaliação)."]
["Após fazer o fichamento da tecnologia é preciso identificar o grupo de TRL que ela pretende alcançar. Conforme apresentado no Quadro 1."]
[]
[]
["Posteriormente o respondedor deve identificar uma porcentagem de Tolerância, ou seja, margem de não cumprimento dos critérios do nível aceito pela gestão para prosseguir para o próximo TRL."]
["De acordo com a porcentagem poderá modificar o resultado de uma avaliação para um devido TRL. Essa porcentagem vale somente para as questões adicionadas. As questões pertinentes a NBR ISO 16290:2015 não tem grau de tolerância."]
["No grau de tolerância é avaliado o nível de TRL total, e não questão por questão, ou seja, uma determinada questão pode cumprir menos que o grau estipulado e essa tecnologia passar para o próximo nível devido a soma dos percentuais de todas as questões ser maior que o grau estipulado."]
[]
[]
["Após preenchimento dos dados da tecnologia a ser avalia e da escolha do grau de tolerância basta clicar no botão INICIAR AVALIAÇÃO que abrirá a página com o questionário pertinente a avaliação do nível de TRL, passo 3. "]
["Passo 3- Avaliação TRL: O processo de avaliação dá-se em forma de um questionário que contém questões pertinentes a NBR ISO 16290:2015 e questões adicionadas com base nas metodologias de apoio supracitadas. Todas as questões pertinentes ao grupo selecionado devem ser respondidas e realizado um processo de auditória (checklist) documental."]
["As questões NBR ISO 16290:2015 são marcadas com a letra I (cor: rosa) na COLUNA1, conforme demonstrado na Figura 6. Devem ser apenas respondidas se cumpriu ou não cumpriu o que pede a questão. Caso a questão tenha sido cumprida basta assinalar com um (tique) na COLUNA 4 conforme demonstrado na Figura 6."]
["As demais questões adicionadas são marcadas com a letra E (cor: azul) na COLUNA1, conforme demonstrado na Figura 6. Para essas questões é aplicada o grau de tolerância estipulado no passo anterior."]
["Para responder o percentual de realização dessas questões basta correr a barra através da seta, conforme demonstrado na COLUNA 2 e o percentual numérico aparecerá na COLUNA 3, conforme demonstrado na Figura 6. O percentual é de 0 a 100 e é modificado em múltiplos de 5."]
[]
[]
[]
["v  6. Relatório TRL."]
[]
["Como resultado o aplicativo denominado Calculadora TRL IAE/ITA-2016 tem-se o status da tecnologia em uma comparação de dois resultados: um resultado da avaliação somente dos critérios relacionados a Norma NBR ISO 16290:2015 e o outro é o resultado de todo o questionário de acordo com a Tolerância estipulada, conforme demonstrado na Figura 7."]
[]
[]
["Ao finalizar a avaliação é necessário salvar o resultado. Após realizar a avaliação têm-se nessa janela do aplicativo o botão NOVA AVALIAÇÃO que zera a calculadora, perdendo as informações anteriores e volta para a página inicial para a realização de uma nova avaliação."]
[]
[]
[]
["Bibliografia"]
["ALMEIDA, V.R. Sensores Iniciais Fotônicos para aplicações aeroespaciais: nível de maturidade tecnológica. Monografia apresentada em 05. Set. 2008. CCEM 2008."]
["FERENCE, T.P.; THURMAN, P.W.; tradução Silvio Antunha. Estratégia. Série fundamentos. Conhecimento real para o mundo real. São Paulo: Saraiva, 2012. 192 p."]
["FREIRE, A.P.B.B. Metodologia de Avaliação de Nível de Maturidade Tecnológica para o Ciclo de Vida dos Materiais. Maj QEM Antonio Paulo Bruno de Brito Freire. Rio de Janeiro, 2006. 18 p."]
["GUIDANCE. DoD 2011- Technology Readiness Assessment (TRA) Guidance. Departamento de Defesa dos Estados Unidos. Abril de 2011. [Online] Disponível em: https://www.researchgate.net/file.PostFileLoader.html?id=5566cff45cd9e318e88b4696&assetKey=AS:273785192681472@1442286884102 Acesso em: 11 de fevereiro 2017."]
["NOLTE, W. Readiness Level Proliferation. AFRL/XPQ. Integrity, servisse, excellence. [Online] Dtic.mil. EUA. 26 october 2011. Disponível em: < http://www.dtic.mil/ndia/2011system/13132_NolteWednesday.pdf>. Acesso em: fevereiro 2017."]
["OLECHOWSKI, A.; EPPINGER, S. D.; JOGLEKAR, N. Technology Readiness Levels at 40: a study of state-of-the-art use challenges, and opportunities. MIT Sloan School of Management, MIT Sloan School Working Paper 5127- 15. [Online] April 1, 2015. Disponível em: < https://dspace.mit.edu/bitstream/handle/1721.1/96307/MITSloanWP5127-15_Eppinger_PICMET.pdf?sequence=1 >. Acesso em: janeiro 2017."]
["ROCHA, Daiane. Uma adaptação da Norma NBR ISO 16290:2015 aplicada em projetos do setor Aeroespacial. 2016.120f. Dissertação de mestrado em Sistemas Espaciais, Ensaios e Lançamentos – Instituto Tecnológico de Aeronáutica, São José dos Campos."]

{"sheet":"ETAPA 1","index":3,"n_rows":55,"n_cols":31,"rows_kept":55,"cut":false,"hidden":false,"merged":[[17,7,17,9],[18,7,19,25],[7,5,8,10],[7,11,8,26],[9,5,11,26],[15,8,15,10],[15,11,15,14],[5,5,6,10],[5,11,6,26],[14,15,14,26],[14,5,14,7],[14,8,14,11],[14,12,14,14],[1,5,1,8],[4,5,4,26],[2,14,2,17],[2,5,2,8],[3,8,3,21],[57,14,57,20],[46,11,47,26],[24,9,25,25],[27,9,30,25],[21,5,22,5],[24,5,25,5],[27,5,30,5],[54,8,55,14],[48,5,50,26],[54,18,55,20],[46,5,47,10],[21,9,22,25]]}
[]
[]
[]
[null,null,null,null,null,null,null,null,"CALCULADORA DE TRL IAE/ITA-2016-1"]
[]
[]
[]
[null,null,null,null,null,"Tecnologia:"]
[]
[null,null,null,null,null,"Aqui você colocará somente uma breve descrição da avaliação contendo o nome da tecnologia, a pessoa que realizará a avaliação e a data da avaliação. "]
[]
[]
[]
[]
[null,null,null,null,null,"Nome da Tecnologia:",null,null,null,null,null,null,"Responsável pela TC:"]
[null,null,null,null,null,null,null,null,"Data da Avaliação:"]
[]
[null,null,null,null,null,null,null,"Definição do grupo:"]
[null,null,null,null,null,null,null,"A definição do grupo delimita até qual TRL irá responder, estipulando que TRL deseja alcançar. Tendo sempre que completar a resposta do grupo."]
[]
[]
[null,null,null,null,null,null,null,"SCORE",null,"TRL 1 a 3: Pesquisa e Desenvolvimento (P & D): Atividades de pesquisa e exploração da tecnologia, descobrimento e formulação do conceito da tecnologia a ser desenvolvida."]
[]
[]
[null,null,null,null,null,null,null,"SCORE",null,"TRL 4 a 6: Construção da Tecnologia: Desenvolvimento do conceito da tecnologia e aplicação (protótipo), prova experimental da tecnologia realizada em ambiente laboratorial relevante."]
[]
[]
[null,null,null,null,null,null,null,null,null,"TRL 7 a 9: Validação e Produção: Demonstração em ambiente aeroespacial, sistema qualificado e missão alcançada, possibilidade de reprodução em escala, processo de parceria e transferência tecnológica para indústria.  "]
[null,null,null,null,null,null,null,"SCORE"]
[]
[]
[]
[]
[]
[]
[]
[]
[]
[]
[]
[]
[]
[]
[]
[]
[]
[null,null,null,null,null,"Tolerância:"]
[]
[null,null,null,null,null,"Aqui você pode alterar os valores padrões que a planilha usa para determinar a conclusão da pergunta na avaliação de TRL do Setor Espacial. "]
[]
[]
[]
[null,null,null,null,null,null,null,null,null,null,null,null,null,null,null,null,null,null,null,null,null,null,null,null,null,null,null,null,null,100,85]
[]
[null,null,null,null,null,null,null,null,"Tolerância:",null,null,null,null,null,null,null,null,null,{"$f":"AE55","v":0.85},null,null,null,null,null,null,null,null,null,null,null,{"$f":"AE53/100","v":0.85}]

{"sheet":"ETAPA 2","index":4,"n_rows":193,"n_cols":29,"rows_kept":193,"cut":false,"hidden":false,"merged":[[100,19,100,20],[100,21,100,22],[100,23,100,24],[102,21,102,22],[107,23,107,24],[99,19,99,20],[9,24,9,25],[9,19,10,19],[88,23,88,24],[14,21,14,22],[14,23,14,24],[14,25,14,26],[43,19,43,20],[25,19,25,20],[14,27,14,28],[33,27,33,28],[33,21,33,22],[81,23,81,24],[15,6,15,14],[17,6,17,14],[33,23,33,24],[22,6,22,14],[51,27,51,28],[46,21,46,22],[63,19,63,20],[63,21,63,22],[63,23,63,24],[51,23,51,24],[26,23,26,24],[26,21,26,22],[26,19,26,20],[44,19,44,20],[44,21,44,22],[44,23,44,24],[28,21,28,22],[23,6,23,14],[21,6,21,14],[34,6,34,14],[123,27,123,28],[141,27,141,28],[88,21,88,22],[70,27,70,28],[107,27,107,28],[141,21,141,22],[107,21,107,22],[123,21,123,22],[88,27,88,28],[70,21,70,22],[70,23,70,24],[83,21,83,22],[123,23,123,24],[116,21,116,22],[134,21,134,22],[134,23,134,24],[136,21,136,22],[141,23,141,24],[10,10,10,13],[9,2,9,4],[9,11,9,12],[9,13,9,15],[9,5,9,10],[63,2,63,3],[16,6,16,14],[56,6,56,14],[57,6,57,14],[18,6,18,14],[19,6,19,14],[54,6,54,14],[55,6,55,14],[26,2,26,3],[35,6,35,14],[33,4,33,5],[33,6,33,14],[40,6,40,14],[70,6,70,14],[60,6,60,14],[41,6,41,14],[53,6,53,14],[88,4,88,5],[73,6,73,14],[82,2,85,15],[51,21,51,22],[61,6,61,14],[65,21,65,22],[81,21,81,22],[52,6,52,14],[58,6,58,14],[74,6,74,14],[71,6,71,14],[111,6,111,14],[100,2,100,3],[101,2,104,15],[62,19,62,20],[80,19,80,20],[94,6,94,14],[88,6,88,14],[72,6,72,14],[77,6,77,14],[76,6,76,14],[81,19,81,20],[89,6,89,14],[98,6,98,14],[81,2,81,3],[97,6,97,14],[95,6,95,14],[108,6,108,14],[109,6,109,14],[110,6,110,14],[75,6,75,14],[96,6,96,14],[64,2,67,15],[70,4,70,5],[92,6,92,14],[195,19,195,20],[129,6,129,14],[116,2,116,3],[117,2,120,15],[123,4,123,5],[116,23,116,24],[118,21,118,22],[178,21,178,22],[134,19,134,20],[155,19,155,20],[155,21,155,22],[155,23,155,24],[157,21,157,22],[154,19,154,20],[175,19,175,20],[128,6,128,14],[123,6,123,14],[130,6,130,14],[141,6,141,14],[194,2,194,3],[190,2,190,3],[176,19,176,20],[116,19,116,20],[147,6,147,14],[198,19,198,20],[191,19,191,20],[192,19,192,20],[143,6,143,14],[151,6,151,14],[174,6,174,14],[190,19,190,28],[162,27,162,28],[166,6,166,14],[164,6,164,14],[162,21,162,22],[171,6,171,14],[172,6,172,14],[173,6,173,14],[169,6,169,14],[168,6,168,14],[197,19,197,28],[148,6,148,14],[193,19,193,20],[194,19,194,20],[153,6,153,14],[146,6,146,14],[162,23,162,24],[176,23,176,24],[156,2,159,15],[155,2,155,3],[144,6,144,14],[152,6,152,14],[149,6,149,14],[162,4,162,5],[162,6,162,14],[124,6,124,14],[125,6,125,14],[126,6,126,14],[127,6,127,14],[193,2,193,3],[150,6,150,14],[131,6,131,14],[90,6,90,14],[176,21,176,22],[114,6,114,14],[91,6,91,14],[2,2,2,13],[44,2,44,3],[45,2,48,15],[51,4,51,5],[51,6,51,14],[37,6,37,14],[38,6,38,14],[14,4,14,5],[14,6,14,14],[20,6,20,14],[24,6,24,14],[42,6,42,14],[27,2,30,15],[39,6,39,14],[36,6,36,14],[115,19,115,20],[133,19,133,20],[167,6,167,14],[165,6,165,14],[191,2,191,3],[192,2,192,3],[10,7,10,9],[183,13,185,14],[132,6,132,14],[177,2,180,15],[176,2,176,3],[170,6,170,14],[134,2,134,3],[135,2,138,15],[141,4,141,5],[142,6,142,14],[163,6,163,14],[145,6,145,14],[107,4,107,5],[107,6,107,14],[112,6,112,14],[113,6,113,14],[93,6,93,14],[59,6,59,14],[78,6,78,14],[79,6,79,14]]}
[]
[]
[null,null,"CALCULADORA DE TRL IAE/ITA-2016-1"]
[]
[]
[]
[]
[]
[]
[null,null,"Nome da Tecnologia: ",null,null,{"$f":"'ETAPA 1'!I15","v":0},null,null,null,null,null,"Pessoa Responsável: ",null,{"$f":"'ETAPA 1'!P15","v":0},null,null,null,null,null,"Definição Score",null,null,null,null,"Tolerância ",null,{"$f":"'ETAPA 1'!AE55","v":0.85},{"$f":"AA10","v":0.85}]
[null,null,null,null,null,null,null,"Data da avaliação TRL: ",null,null,{"$f":"'ETAPA 1'!L16","v":"00:00:00"}]
[]
[]
[null,null,null,"ISO"]
[null,null,null,"ESP","% Completa",null,"TRL 1: Principios básicos observados e reportados ",null,null,null,null,null,null,null,null,null,null,null,"TRL","Chk Box","Score","TRL ESPAÇO",null,"TRL ISO",null,null,null,"Barra"]
[null,null,null,"I",null,null,"Foram identificados os princípios básicos? ",null,null,null,null,null,null,null,null,null,null,null,{"$f":"IF(OR($D16=\"E\",$D16=\"I\"),1,0)","v":1},true,{"$f":"IF(OR(F16>=$U$11,$T16=TRUE),1,0)","v":1},{"$f":"S16","v":1},{"$f":"IF(AND(V16=1,T16=TRUE),1,\"\")","v":1},{"$f":"IF(D16=\"I\",S16,\"\")","v":1},{"$f":"IF(AND(X16=1,T16=TRUE),1,\"\")","v":1},null,null,{"$f":"IF(T16=TRUE,100,0)","v":100}]
[null,null,null,"I",null,null,"Foram identificadas potenciais aplicações para a tecnologia?",null,null,null,null,null,null,null,null,null,null,null,{"$f":"IF(OR($D17=\"E\",$D17=\"I\"),1,0)","v":1},true,1,{"$f":"S17","v":1},{"$f":"IF(AND(V17=1,T17=TRUE),1,\"\")","v":1},1,{"$f":"IF(AND(X17=1,T17=TRUE),1,\"\")","v":1},null,null,{"$f":"IF(T17=TRUE,100,0)","v":100}]
[null,null,null,"E",null,100,"Foram documentado os estudos que confirmam os princípios básicos?",null,null,null,null,null,null,null,null,null,null,null,1,true,1,1,1,"","",null,null,{"$f":"F18","v":100},true]
[null,null,null,"E",null,100,"Foram identificadas leis e pressupostos utilizados na nova tecnologia e não proíbem o desenvolvimento?",null,null,null,null,null,null,null,null,null,null,null,1,true,1,1,1,"","",null,null,{"$f":"F19","v":100},true]
[null,null,null,"E",null,100,"Foi levantada e documentada a ideia dos riscos, custos e cronograma para desenvolvimento da pesquisa tecnológica?",null,null,null,null,null,null,null,null,null,null,null,1,true,1,1,1,"","",null,null,{"$f":"F20","v":100},true]
[null,null,null,"E",null,100,"Foi identificado quem e onde será realizada as pesquisas da tecnologia? ",null,null,null,null,null,null,null,null,null,null,null,1,true,1,1,1,"","",null,null,{"$f":"F21","v":100},true]
[null,null,null,"E",null,100,"Existe fonte monetária ou interessados, stakeholders (patrocinadores) na concretização da tecnologia?",null,null,null,null,null,null,null,null,null,null,null,1,true,1,1,1,"","",null,null,{"$f":"F22","v":100},true]
[null,null,null,"E",null,100,"Foi levantado se alguma outra instituição de pesquisa ou empresa está pesquisando a tecnologia no país?",null,null,null,null,null,null,null,null,null,null,null,1,true,1,1,1,"","",null,null,100,true]
[null,null,null,"E",null,100,"Foi realizada pesquisa em ambiente exploratório? ",null,null,null,null,null,null,null,null,null,null,null,1,true,1,1,1,"","",null,null,100,true]
[null,null,null,"E",null,100,"Existem publicações científicas em revistas/ anais/ congressos a respeito da tecnologia? ",null,null,null,null,null,null,null,null,null,null,null,1,true,1,1,1,"","",null,null,{"$f":"F25","v":100},true]
[null,null,null,null,null,null,null,null,null,null,null,null,null,null,null,null,null,null,null,"Máximo alcançado",null,{"$f":"COUNTIF(V16:V25,1)","v":10},{"$f":"SUM(W16:W25)","v":10},{"$f":"SUM(X16:X25)","v":2},{"$f":"IF(SUM(Y16:Y25)=X26,X26,1)","v":2},null,null,{"$f":"SUM(AB16:AB25)","v":1000}]
[null,null,"Comentários:",null,null,null,null,null,null,null,null,null,null,null,null,null,null,null,null,"Resultado TRL",null,{"$f":"(V26/W26)","v":1},null,{"$f":"(X26/Y26)","v":1}]
[null,null,null,null,null,null,null,null,null,null,null,null,null,null,null,null,null,null,null,null,null,{"$f":"W26*100","v":1000},{"$f":"AB26/V28","v":1}]
[null,null,null,null,null,null,null,null,null,null,null,null,null,null,null,null,null,null,null,null,null,{"$f":"IF(W28>=AB10,TRUE,FALSE)","v":true}]
[]
[null,null,null,null,null,null,null,null,null,null,null,null,null,null,null,null,null,null,null,null,null,null,null,null,null,null,null,0]
[null,null,null,null,null,0,null,null,null,null,null,null,null,null,null,null,null,null,null,null,null,null,null,null,null,null,null,0]
[null,null,null,"ISO",null,0,null,null,null,null,null,null,null,null,null,null,null,null,null,null,null,null,null,null,null,null,null,0]
[null,null,null,"ESP","% Completa",null,"TRL 2:  Conceito tecnológico e\\ou aplicação formulados",null,null,null,null,null,null,null,null,null,null,null,"TRL","Chk Box","Score","TRL ESPAÇO",null,"TRL ISO",null,null,null,"Barra"]
[null,null,null,"I",null,null,"Foram formuladas as potenciais aplicações?",null,null,null,null,null,null,null,null,null,null,null,{"$f":"IF(OR($D35=\"E\",$D35=\"I\"),2,0)","v":2},true,{"$f":"IF(OR(F35>=$U$11,$T35=TRUE),1,0)","v":1},{"$f":"S35","v":2},{"$f":"IF(AND($V35=2,$U35=1),1,0)","v":1},{"$f":"IF(D35=\"I\",S35,\"\")","v":2},{"$f":"IF(AND(X35=2,T35=TRUE),2,\"\")","v":2},null,null,{"$f":"IF(T35=TRUE,100,0)","v":100}]
[null,null,null,"E",null,100,"Foi realizada pesquisa em ambiente de trabalho?",null,null,null,null,null,null,null,null,null,null,null,{"$f":"IF(OR($D36=\"E\",$D36=\"I\"),2,0)","v":2},true,1,{"$f":"S36","v":2},{"$f":"IF(AND($V36=2,$U36=1),1,0)","v":1},"","",null,null,{"$f":"F36","v":100},true]
[null,null,null,"E",null,100,"Foram identificadas as principais funções a serem desempenhadas pela tecnologia?",null,null,null,null,null,null,null,null,null,null,null,2,true,1,2,1,"","",null,null,100,true]
[null,null,null,"E",null,100,"Foi documentada a viabilidade das aplicações confirmadas por estudos?",null,null,null,null,null,null,null,null,null,null,null,2,true,1,2,1,"","",null,null,100,true]
[null,null,null,"E",null,100,"Foi identificada a funcionalidade da tecnologia?",null,null,null,null,null,null,null,null,null,null,null,2,true,1,2,1,"","",null,null,100,true]
[null,null,null,"E",null,100,"Foram identificados possíveis GAP’s da tecnologia e documentados?",null,null,null,null,null,null,null,null,null,null,null,2,true,1,2,1,"","",null,null,100,true]
[null,null,null,"E",null,100,"Sabe que programa (projeto) a tecnologia vai apoiar?",null,null,null,null,null,null,null,null,null,null,null,2,true,1,2,1,"","",null,null,100,true]
[null,null,null,"E",null,100,"Foram identificados potenciais clientes?",null,null,null,null,null,null,null,null,null,null,null,2,true,1,2,1,"","",null,null,100,true]
[null,null,null,"E",null,100,"Cliente demonstra interesse na aplicação?",null,null,null,null,null,null,null,null,null,null,null,2,true,1,2,1,"","",null,null,100,true]
[null,null,null,null,null,null,null,null,null,null,null,null,null,null,null,null,null,null,null,"Máximo alcançado",null,{"$f":"COUNTIF(V36:V43,2)","v":8},{"$f":"SUM(W36:W43)","v":8},{"$f":"SUM(X35:X43)","v":2},{"$f":"IF(SUM(Y35:Y43)=X44,X44,1)","v":2},null,null,{"$f":"SUM(AB35:AB43)","v":900}]
[null,null,"Comentários:",null,null,null,null,null,null,null,null,null,null,null,null,null,null,null,null,"Resultado TRL",null,{"$f":"(V44/W44)","v":1},null,{"$f":"(X44/Y44)","v":1}]
[null,null,null,null,null,null,null,null,null,null,null,null,null,null,null,null,null,null,null,null,null,{"$f":"W44*100","v":800},{"$f":"AB44/V46","v":1.125}]
[null,null,null,null,null,null,null,null,null,null,null,null,null,null,null,null,null,null,null,null,null,{"$f":"IF(W46>=AB10,TRUE,FALSE)","v":true}]
[null,null,null,null,null,null,null,null,null,null,null,null,null,null,null,null,null,null,null,null,null,null,null,null,null,null,null,0]
[]
[]
[null,null,null,"ISO",null,0,null,null,null,null,null,null,null,null,null,null,null,null,null,null,null,null,null,null,null,null,null,0]
[null,null,null,"ESP","% Completa",null,"TRL 3: Prova de conceito experimental e analítica, da função crítica e/ou característica",null,null,null,null,null,null,null,null,null,null,null,"TRL","Chk Box","Score","TRL ESPAÇO",null,"TRL ISO",null,null,null,"Barra"]
[null,null,null,"I",null,null,"Foi concretizado a realização do projeto conceitual do elemento e documentado? ",null,null,null,null,null,null,null,null,null,null,null,{"$f":"IF(OR($D53=\"E\",$D53=\"I\"),3,0)","v":3},true,{"$f":"IF(OR(F53>=$U$11,$T53=TRUE),1,0)","v":1},{"$f":"S53","v":3},{"$f":"IF(AND($V53=3,$U53=1),1,0)","v":1},{"$f":"IF(D53=\"I\",S53,\"\")","v":3},{"$f":"IF(AND(X53=3,T53=TRUE),3,\"\")","v":3},null,null,{"$f":"IF(T53=TRUE,100,0)","v":100}]
[null,null,null,"I",null,null,"Foram especificados os requisitos de desempenho da tecnologia?",null,null,null,null,null,null,null,null,null,null,null,{"$f":"IF(OR($D54=\"E\",$D54=\"I\"),3,0)","v":3},true,1,{"$f":"S54","v":3},{"$f":"IF(AND($V54=3,$U54=1),1,0)","v":1},3,{"$f":"IF(AND(X54=3,T54=TRUE),3,\"\")","v":3},null,null,{"$f":"IF(T54=TRUE,100,0)","v":100}]
[null,null,null,"E",null,100,"Foi verificada a viabilidade da aplicação por experimentos de laboratório (simulação)? ",null,null,null,null,null,null,null,null,null,null,null,3,true,1,3,1,"","",null,null,{"$f":"F55","v":100},true]
[null,null,null,"E",null,100,"Foram identificados os possíveis defeitos da tecnologia em experimentos de laboratório? ",null,null,null,null,null,null,null,null,null,null,null,3,true,1,3,1,"","",null,null,100,true]
[null,null,null,"E",null,100,"Foram identificados e documentados os componentes que devem trabalhar juntos(visão sistêmica)? ",null,null,null,null,null,null,null,null,null,null,null,3,true,1,3,1,"","",null,null,100,true]
[null,null,null,"E",null,100,"Foi plenamente demonstrada a viabilidade científica da tecnologia?",null,null,null,null,null,null,null,null,null,null,null,3,true,1,3,1,"","",null,null,100,true]
[null,null,null,"E",null,100,"Foram identificadas e desenvolvidas as tecnicas de desenvolvimento da tecnologia?",null,null,null,null,null,null,null,null,null,null,null,3,true,1,3,1,"","",null,null,100,true]
[null,null,null,"E",null,100,"Foram avaliados os conceitos de fabricação da tecnologia?",null,null,null,null,null,null,null,null,null,null,null,3,true,1,3,1,"","",null,null,100,true]
[null,null,null,"E",null,100,"Foram identificados os componentes chaves para fabricação?",null,null,null,null,null,null,null,null,null,null,null,3,true,1,3,1,"","",null,null,100,true]
[null,null,null,"E",null,100,"Foi documentada a ideia dos riscos, custos e cronograma para desenvolvimento do protótipo?",null,null,null,null,null,null,null,null,null,null,null,3,true,1,3,1,"","",null,null,100,true]
[null,null,null,null,null,null,null,null,null,null,null,null,null,null,null,null,null,null,null,"Máximo alcançado",null,{"$f":"COUNTIF(V53:V62,3)","v":10},{"$f":"SUM(W53:W62)","v":10},{"$f":"SUM(X53:X62)","v":6},{"$f":"IF(SUM(Y53:Y62)=X63,X63,1)","v":6},null,null,{"$f":"SUM(AB53:AB62)","v":1000}]
[null,null,"Comentários:",null,null,null,null,null,null,null,null,null,null,null,null,null,null,null,null,"Resultado TRL",null,{"$f":"(V63/W63)","v":1},null,{"$f":"(X63/Y63)","v":1}]
[null,null,null,null,null,null,null,null,null,null,null,null,null,null,null,null,null,null,null,null,null,{"$f":"W63*100","v":1000},{"$f":"AB63/V65","v":1}]
[null,null,null,null,null,null,null,null,null,null,null,null,null,null,null,null,null,null,null,null,null,{"$f":"IF(W65>=AB10,TRUE,FALSE)","v":true}]
[]
[]
[]
[null,null,null,"ISO"]
[null,null,null,"ESP","% Completa",null,"TRL 4:  Validação funcional do componente e/ou “breadboard” em ambiente de laboratório.",null,null,null,null,null,null,null,null,null,null,null,"TRL","Chk Box","Score","TRL ESPAÇO",null,"TRL ISO"]
[null,null,null,"I",null,null,"Foi realizado o projeto conceitual da tecnologia?",null,null,null,null,null,null,null,null,null,null,null,{"$f":"IF(OR($D72=\"E\",$D72=\"I\"),4,0)","v":4},true,{"$f":"IF(OR(F72>=$U$11,$T72=TRUE),1,0)","v":1},{"$f":"S72","v":4},{"$f":"IF(AND($V72=4,$U72=1),1,0)","v":1},{"$f":"IF(D72=\"I\",S72,\"\")","v":4},{"$f":"IF(AND(X72=4,T72=TRUE),4,\"\")","v":4},null,null,{"$f":"IF(T72=TRUE,100,0)","v":100}]
[null,null,null,"E",null,100,"Foram testados os componentes individuais em laboratórios e realizados relatórios?",null,null,null,null,null,null,null,null,null,null,null,{"$f":"IF(OR($D73=\"E\",$D73=\"I\"),4,0)","v":4},false,1,{"$f":"S73","v":4},{"$f":"IF(AND($V73=4,$U73=1),1,0)","v":1},"","",null,null,{"$f":"F73","v":100},true]
[null,null,null,"E",null,100,"Foram totalmente identificados os possíveis GAP’s da tecnologia ?",null,null,null,null,null,null,null,null,null,null,null,4,true,1,4,1,"","",null,null,100,true]
[null,null,null,"E",null,100,"Foram identificados os requisitos gerais do sistema para aplicação aos usuários finais? ",null,null,null,null,null,null,null,null,null,null,null,4,true,1,4,1,"","",null,null,100,true]
[null,null,null,"E",null,100,"Foram estabelecidas as métricas de desempenho da tecnologia?",null,null,null,null,null,null,null,null,null,null,null,4,true,1,4,1,"","",null,null,100,true]
[null,null,null,"E",null,100,"Foi identificado os custos para desenvolvimento do protótipo?",null,null,null,null,null,null,null,null,null,null,null,4,true,1,4,1,"","",null,null,100,true]
[null,null,null,"E",null,100,"Foi realizado o cronograma para desenvolvimento do protótipo?",null,null,null,null,null,null,null,null,null,null,null,4,true,1,4,1,"","",null,null,100,true]
[null,null,null,"E",null,100,"Foi iniciado o programa de gestão de risco do protótipo?",null,null,null,null,null,null,null,null,null,null,null,4,true,1,4,1,"","",null,null,100,true]
[null,null,null,"E",null,100,"Foram iniciados os estudos de integração da tecnologia ao projeto final?",null,null,null,null,null,null,null,null,null,null,null,4,true,1,4,1,"","",null,null,100,true]
[null,null,null,null,null,null,null,null,null,null,null,null,null,null,null,null,null,null,null,"Máximo alcançado",null,{"$f":"COUNTIF(V74:V80,4)","v":7},{"$f":"SUM(W74:W80)","v":7},{"$f":"SUM(X72:X80)","v":4},{"$f":"IF(SUM(Y72:Y80)=X81,X81,1)","v":4},null,null,{"$f":"SUM(AB72:AB80)","v":900}]
[null,null,"Comentários:",null,null,null,null,null,null,null,null,null,null,null,null,null,null,null,null,"Resultado TRL",null,{"$f":"(V81/W81)","v":1},null,{"$f":"(X81/Y81)","v":1}]
[null,null,null,null,null,null,null,null,null,null,null,null,null,null,null,null,null,null,null,null,null,{"$f":"W81*100","v":700},{"$f":"AB81/V83","v":1.2857142857142858}]
[null,null,null,null,null,null,null,null,null,null,null,null,null,null,null,null,null,null,null,null,null,{"$f":"IF(W83>=AB10,TRUE,FALSE)","v":true}]
[]
[]
[]
[null,null,null,"ISO"]
[null,null,null,"ESP","% Completa",null,"TRL 5: Validação funcional do componente e/ou “breadboard” em ambiente de relevante.",null,null,null,null,null,null,null,null,null,null,null,"TRL","Chk Box","Score","TRL ESPAÇO",null,"TRL ISO",null,null,null,"Barra"]
[null,null,null,"I",null,null,"Foi realizado a definição preliminar de requisitos de desempenho no ambiente relevante?",null,null,null,null,null,null,null,null,null,null,null,{"$f":"IF(OR($D90=\"E\",$D90=\"I\"),5,0)","v":5},true,{"$f":"IF(OR(F90>=$U$11,$T90=TRUE),1,0)","v":1},{"$f":"S90","v":5},{"$f":"IF(AND($V90=5,$U90=1),1,0)","v":1},{"$f":"IF(D90=\"I\",S90,\"\")","v":5},{"$f":"IF(AND(X90=5,T90=TRUE),5,\"\")","v":5},null,null,{"$f":"IF(T90=TRUE,100,0)","v":100},true]
[null,null,null,"I",null,null,"Foi realizado o  projeto preliminar do elemento, suportado por modelos apropriados para a verificação funções críticas?",null,null,null,null,null,null,null,null,null,null,null,{"$f":"IF(OR($D91=\"E\",$D91=\"I\"),5,0)","v":5},true,1,{"$f":"S91","v":5},{"$f":"IF(AND($V91=5,$U91=1),1,0)","v":1},5,{"$f":"IF(AND(X91=5,T91=TRUE),5,\"\")","v":5},null,null,{"$f":"IF(T91=TRUE,100,0)","v":100},true]
[null,null,null,"I",null,null,"Foi realizado plano de teste de função crítica para análise dos efeitos de escala?",null,null,null,null,null,null,null,null,null,null,null,5,true,1,5,1,5,5,null,null,100,true]
[null,null,null,"I",null,null,"Foi estipulado a definição placa de ensaio para a verificação da função crítica? ",null,null,null,null,null,null,null,null,null,null,null,5,true,1,5,1,5,5,null,null,100,true]
[null,null,null,"I",null,null,"Foram realizados os testes de teste placa de ensaio com relatórios?",null,null,null,null,null,null,null,null,null,null,null,5,true,1,5,1,5,5,null,null,100,true]
[null,null,null,"E",null,100,"Foram identificados os efeitos das possíveis falhas da tecnologia (se houver)?",null,null,null,null,null,null,null,null,null,null,null,5,true,1,5,1,"","",null,null,{"$f":"F95","v":100},true]
[null,null,null,"E",null,100,"Foram identificados os requisitos de interface de sistema?",null,null,null,null,null,null,null,null,null,null,null,5,true,1,5,1,"","",null,null,{"$f":"F96","v":100},true]
[null,null,null,"E",null,100,"Foram identificadas as interações entre os componentes / subsistemas?",null,null,null,null,null,null,null,null,null,null,null,5,true,1,5,1,"","",null,null,{"$f":"F97","v":100},true]
[null,null,null,"E",null,100,"Foi realizada modificações no ambiente de laboratório para aproximar ambiente operacional deixando apto a testes?",null,null,null,null,null,null,null,null,null,null,null,5,true,1,5,1,"","",null,null,{"$f":"F98","v":100},true]
[null,null,null,"E",null,100,"Foram realizados testes tecnológicos dos componentes em ambiente relevante?",null,null,null,null,null,null,null,null,null,null,null,5,true,1,5,1,"","",null,null,{"$f":"F99","v":100},true]
[null,null,null,null,null,null,null,null,null,null,null,null,null,null,null,null,null,null,null,"Máximo alcançado",null,{"$f":"COUNTIF(V90:V99,5)","v":10},{"$f":"SUM(W90:W99)","v":10},{"$f":"SUM(X90:X99)","v":25},{"$f":"IF(SUM(Y90:Y99)=X100,X100,1)","v":25},null,null,{"$f":"SUM(AB90:AB99)","v":1000}]
[null,null,"Comentários:",null,null,null,null,null,null,null,null,null,null,null,null,null,null,null,null,"Resultado TRL",null,{"$f":"(V100/W100)","v":1},null,{"$f":"(X100/Y100)","v":1}]
[null,null,null,null,null,null,null,null,null,null,null,null,null,null,null,null,null,null,null,null,null,{"$f":"W100*100","v":1000},{"$f":"AB100/V102","v":1}]
[null,null,null,null,null,null,null,null,null,null,null,null,null,null,null,null,null,null,null,null,null,{"$f":"IF(W102>=AB10,TRUE,FALSE)","v":true}]
[]
[]
[]
[null,null,null,"ISO"]
[null,null,null,"ESP","% Completa",null,"TRL 6: Demonstração do modelo ou protótipo do sistema/subsistema em ambiente relevante.",null,null,null,null,null,null,null,null,null,null,null,"TRL","Chk Box","Score","TRL ESPAÇO",null,"TRL ISO",null,null,null,"Barra"]
[null,null,null,"I",null,null,"Foram realizados identificação e análise das funções críticas do elemento e verificadas as funções críticas e documentadas em relatório?",null,null,null,null,null,null,null,null,null,null,null,{"$f":"IF(OR($D109=\"E\",$D109=\"I\"),6,0)","v":6},true,{"$f":"IF(OR(F109>=$U$11,$T109=TRUE),1,0)","v":1},{"$f":"S109","v":6},{"$f":"IF(AND($V109=6,$U109=1),1,0)","v":1},{"$f":"IF(D109=\"I\",S109,\"\")","v":6},{"$f":"IF(AND(X109=6,T109=TRUE),6,\"\")","v":6},null,null,{"$f":"IF(T109=TRUE,100,0)","v":100}]
[null,null,null,"I",null,null,"O ambiente relevante de funcionamento para eventual sistema é conhecido?",null,null,null,null,null,null,null,null,null,null,null,6,true,1,6,1,6,6,null,null,{"$f":"IF(T110=TRUE,100,0)","v":100}]
[null,null,null,"E",null,100,"Foi realizada e documentada a definição de requerimento do desempenho e do ambiente relevante?",null,null,null,null,null,null,null,null,null,null,null,6,true,1,6,1,"","",null,null,{"$f":"F111","v":100}]
[null,null,null,"E",null,100,"Foram documentados os requisitos completos de sistema e subsistema para funcionamento?",null,null,null,null,null,null,null,null,null,null,null,6,true,1,6,1,"","",null,null,{"$f":"F112","v":100},true]
[null,null,null,"E",null,100,"Foram concluídas as avaliações das características de desempenho da tecnologia mesmo com os possíveis GAP’s?",null,null,null,null,null,null,null,null,null,null,null,6,true,1,6,1,"","",null,null,{"$f":"F113","v":100},true]
[null,null,null,"E",null,100,"Foi iniciada a aquisição de dados da manutenção real, confiabilidade e dados de suporte? ",null,null,null,null,null,null,null,null,null,null,null,6,true,1,6,1,"","",null,null,{"$f":"F114","v":100},true]
[null,null,null,"E",null,100,"Foi testado o modelo representativo (protótipo) completo em laboratório, ambiente operacional de alta fidelidade (simulação)?",null,null,null,null,null,null,null,null,null,null,null,6,true,1,6,1,"","",null,null,{"$f":"F115","v":100},true]
[null,null,null,null,null,null,null,null,null,null,null,null,null,null,null,null,null,null,null,"Máximo alcançado",null,{"$f":"COUNTIF(V107:V115,6)","v":7},{"$f":"SUM(W107:W115)","v":7},{"$f":"SUM(X106:X115)","v":12},{"$f":"IF(SUM(Y106:Y115)=X116,X116,1)","v":12},null,null,{"$f":"SUM(AB109:AB115)","v":700}]
[null,null,"Comentários:",null,null,null,null,null,null,null,null,null,null,null,null,null,null,null,null,"Resultado TRL",null,{"$f":"(V116/W116)","v":1},null,{"$f":"(X116/Y116)","v":1}]
[null,null,null,null,null,null,null,null,null,null,null,null,null,null,null,null,null,null,null,null,null,{"$f":"W116*100","v":700},{"$f":"AB116/V118","v":1}]
[null,null,null,null,null,null,null,null,null,null,null,null,null,null,null,null,null,null,null,null,null,{"$f":"IF(W118>=AB10,TRUE,FALSE)","v":true}]
[]
[]
[]
[null,null,null,"ISO"]
[null,null,null,"ESP","% Completa",null,"TRL 7: Demonstração do protótipo do sistema em ambiente espacial.",null,null,null,null,null,null,null,null,null,null,null,"TRL","Chk Box","Score","TRL ESPAÇO",null,"TRL ISO",null,null,null,"Barra"]
[null,null,null,"I",null,null,"Foi documentada a definição de requisitos de desempenho?",null,null,null,null,null,null,null,null,null,null,null,{"$f":"IF(OR($D125=\"E\",$D125=\"I\"),7,0)","v":7},true,{"$f":"IF(OR(F125>=$U$11,$T125=TRUE),1,0)","v":1},{"$f":"S125","v":7},{"$f":"IF(AND($V125=7,$U125=1),1,0)","v":1},{"$f":"IF(D125=\"I\",S125,\"\")","v":7},{"$f":"IF(AND(X125=7,T125=TRUE),7,\"\")","v":7},null,null,{"$f":"IF(T125=TRUE,100,0)","v":100}]
[null,null,null,"I",null,null,"Foi documentada a definição do ambiente operacional?",null,null,null,null,null,null,null,null,null,null,null,7,true,1,7,1,7,7,null,null,100]
[null,null,null,"I",null,null,"Foi documentada a definição do modelo e da realização do teste?",null,null,null,null,null,null,null,null,null,null,null,7,true,1,7,1,7,7,null,null,{"$f":"IF(T127=TRUE,100,0)","v":100}]
[null,null,null,"E",null,100,"Foi realizado testes em cada interface do sistema / software individualmente em condições de tensão e anômalas?",null,null,null,null,null,null,null,null,null,null,null,7,true,1,7,1,"","",null,null,{"$f":"F128","v":100}]
[null,null,null,"E",null,100,"Foi simulado as funcionalidades disponíveis para demonstração em ambiente operacional?",null,null,null,null,null,null,null,null,null,null,null,7,true,1,7,1,"","",null,null,100,true]
[null,null,null,"E",null,100,"Foi totalmente integrado o protótipo ao ambiente real demonstrado (ou simulado ambiente operacional)?",null,null,null,null,null,null,null,null,null,null,null,7,true,1,7,1,"","",null,null,100,true]
[null,null,null,"E",null,100,"Foi realizado teste com sucesso do protótipo do sistema em um ambiente estipulado?",null,null,null,null,null,null,null,null,null,null,null,7,true,1,7,1,"","",null,null,100,true]
[null,null,null,"E",null,100,"Foi realizado documentação do teste do modelo de protótipo?",null,null,null,null,null,null,null,null,null,null,null,7,true,1,7,1,"","",null,null,100,true]
[null,null,null,"E",null,100,"Foi documentada a ideia dos riscos, custos e cronograma para desenvolvimento da tecnologia em escala?",null,null,null,null,null,null,null,null,null,null,null,7,true,1,7,1,"","",null,null,100,true]
[null,null,null,null,null,null,null,null,null,null,null,null,null,null,null,null,null,null,null,"Máximo alcançado",null,{"$f":"COUNTIF(V125:V133,7)","v":9},{"$f":"SUM(W125:W133)","v":9},{"$f":"SUM(X124:X133)","v":21},{"$f":"IF(SUM(Y124:Y133)=X134,X134,1)","v":21},null,null,{"$f":"SUM(AB125:AB133)","v":900}]
[null,null,"Comentários:",null,null,null,null,null,null,null,null,null,null,null,null,null,null,null,null,"Resultado TRL",null,{"$f":"(V134/W134)","v":1},null,{"$f":"(X134/Y134)","v":1}]
[null,null,null,null,null,null,null,null,null,null,null,null,null,null,null,null,null,null,null,null,null,{"$f":"W134*100","v":900},{"$f":"AB134/V136","v":1}]
[null,null,null,null,null,null,null,null,null,null,null,null,null,null,null,null,null,null,null,null,null,{"$f":"IF(W136>=AB10,TRUE,FALSE)","v":true}]
[]
[]
[]
[null,null,null,"ISO"]
[null,null,null,"ESP","% Completa",null,"TRL 8: Sistema real completo e qualificado em vôo por meio de testes e demonstração.",null,null,null,null,null,null,null,null,null,null,null,"TRL","Chk Box","Score","TRL ESPAÇO",null,"TRL ISO",null,null,null,"Barra"]
[null,null,null,"I",null,null,"Foi construído e integrado o modelo final no sistema final? (produto)",null,null,null,null,null,null,null,null,null,null,null,{"$f":"IF(OR($D143=\"E\",$D143=\"I\"),8,0)","v":8},true,{"$f":"IF(OR(F143>=$U$11,$T143=TRUE),1,0)","v":1},{"$f":"S143","v":8},{"$f":"IF(AND($V143=8,$U143=1),1,0)","v":1},{"$f":"IF(D143=\"I\",S143,\"\")","v":8},{"$f":"IF(AND(X143=8,T143=TRUE),8,\"\")","v":8},null,null,{"$f":"IF(T143=TRUE,100,0)","v":100},true]
[null,null,null,"E",null,100,"Foram realizados ajustes dos componentes a suas funções para deixar compatível com o sistema operacional?",null,null,null,null,null,null,null,null,null,null,null,{"$f":"IF(OR($D144=\"E\",$D144=\"I\"),8,0)","v":8},true,1,8,{"$f":"IF(AND($V144=8,$U144=1),1,0)","v":1},"",{"$f":"IF(AND(X144=8,T144=TRUE),8,\"\")","v":""},null,null,{"$f":"F144","v":100},true]
[null,null,null,"E",null,100,"Foi testado o sistema e caracterizado com seu design e função para a aplicação pretendida ?",null,null,null,null,null,null,null,null,null,null,null,8,true,1,8,1,"","",null,null,100,true]
[null,null,null,"E",null,100,"Foram demonstrados os resultados o funcionamentos e a função da tecnologia em eventual teste de sistema de plataforma?",null,null,null,null,null,null,null,null,null,null,null,8,true,1,8,1,"","",null,null,100,true]
[null,null,null,"E",null,100,"Foi concluído o processo de controle da interface?",null,null,null,null,null,null,null,null,null,null,null,8,true,1,8,1,"","",null,null,100,true]
[null,null,null,"E",null,100,"Foi concluída a documentação formal de regulamentação?",null,null,null,null,null,null,null,null,null,null,null,8,true,1,8,1,"","",null,null,100,true]
[null,null,null,"E",null,100,"Foi concluída a documentação da gestão e controle de configuração?",null,null,null,null,null,null,null,null,null,null,null,8,true,1,8,1,"","",null,null,100,true]
[null,null,null,"E",null,100,"Foram demonstradas todas as funcionalidades em ambiente operacional simulado e sistema qualificados através de teste e avaliação na plataforma real?",null,null,null,null,null,null,null,null,null,null,null,8,true,1,8,1,"","",null,null,100,true]
[null,null,null,"E",null,100,"Foi identificado que o sistema atende às especificações? ",null,null,null,null,null,null,null,null,null,null,null,8,true,1,8,1,"","",null,null,100,true]
[null,null,null,"E",null,100,"Foi iniciado no programa de gestão de risco em parceria com o desenvolvimento com a indústria?",null,null,null,null,null,null,null,null,null,null,null,8,true,1,8,1,"","",null,null,100,true]
[null,null,null,"E",null,100,"Foi identificado os custos para desenvolvimento da tecnologia em escala ou transmitido o conhecimento em parceria com a indústria?",null,null,null,null,null,null,null,null,null,null,null,8,true,1,8,1,"","",null,null,100,true]
[null,null,null,"E",null,100,"Foi estipulado cronograma para desenvolvimento em escala da tecnologia ou realizado trabalho em parceria com a indústria? ",null,null,null,null,null,null,null,null,null,null,null,8,true,1,8,1,"","",null,null,100,true]
[null,null,null,null,null,null,null,null,null,null,null,null,null,null,null,null,null,null,null,"Máximo alcançado",null,{"$f":"COUNTIF(V143:V154,8)","v":12},{"$f":"SUM(W143:W154)","v":12},{"$f":"SUM(X143:X154)","v":8},{"$f":"IF(SUM(Y143:Y154)=X155,X155,1)","v":8},null,null,{"$f":"SUM(AB143:AB154)","v":1200}]
[null,null,"Comentários:",null,null,null,null,null,null,null,null,null,null,null,null,null,null,null,null,"Resultado TRL",null,{"$f":"(V155/W155)","v":1},null,{"$f":"(X155/Y155)","v":1}]
[null,null,null,null,null,null,null,null,null,null,null,null,null,null,null,null,null,null,null,null,null,{"$f":"W155*100","v":1200},{"$f":"AB155/V157","v":1}]
[null,null,null,null,null,null,null,null,null,null,null,null,null,null,null,null,null,null,null,null,null,{"$f":"IF(W157>=AB10,TRUE,FALSE)","v":true}]
[]
[]
[]
[null,null,null,"ISO"]
[null,null,null,"ESP","% Completa",null,"TRL 9 : Sistema real testado em vôo por meio de operações com missão alcançada.",null,null,null,null,null,null,null,null,null,null,null,"TRL","Chk Box","Score","TRL ESPAÇO",null,"TRL ISO",null,null,null,"Barra"]
[null,null,null,"I",null,null,"Foi realizado comissionamento na fase de operação inicial?",null,null,null,null,null,null,null,null,null,null,null,{"$f":"IF(OR($D164=\"E\",$D164=\"I\"),9,0)","v":9},true,{"$f":"IF(OR(F164>=$U$11,$T164=TRUE),1,0)","v":1},{"$f":"S164","v":9},{"$f":"IF(AND($V164=9,$U164=1),1,0)","v":1},{"$f":"IF(D164=\"I\",S164,\"\")","v":9},{"$f":"IF(AND(X164=9,T164=TRUE),9,\"\")","v":9},null,null,{"$f":"IF(T164=TRUE,100,0)","v":100},true]
[null,null,null,"I",null,null,"Foram finalizados os relatórios de operação em vôo? ",null,null,null,null,null,null,null,null,null,null,null,{"$f":"IF(OR($D165=\"E\",$D165=\"I\"),9,0)","v":9},true,1,9,{"$f":"IF(AND($V165=9,$U165=1),1,0)","v":1},9,{"$f":"IF(AND(X165=9,T165=TRUE),9,\"\")","v":9},null,null,{"$f":"IF(T165=TRUE,100,0)","v":100}]
[null,null,null,"E",null,100,"Foi plenamente demonstrado o sistema real?                  ",null,null,null,null,null,null,null,null,null,null,null,9,true,1,9,1,"","",null,null,{"$f":"F166","v":100},true]
[null,null,null,"E",null,100,"Foi implementado com sucesso o conceito operacional?",null,null,null,null,null,null,null,null,null,null,null,9,true,1,9,1,"","",null,null,100,true]
[null,null,null,"E",null,100,"Foi  instalada e implantada a tecnololgia em plataforma de sistema antes destinado?",null,null,null,null,null,null,null,null,null,null,null,9,true,1,9,1,"","",null,null,100,true]
[null,null,null,"E",null,100,"Foi realizada através de operações de missão bem sucedida o sistema de missão real \"vôo comprovado“? ",null,null,null,null,null,null,null,null,null,null,null,9,true,1,9,1,"","",null,null,100,true]
[null,null,null,"E",null,100,"Foram realizados todos os processos de fabricação controlados para o nível de qualidade adequado?",null,null,null,null,null,null,null,null,null,null,null,9,true,1,9,1,"","",null,null,100,true]
[null,null,null,"E",null,100,"Foi incluída na documentação o processo de desenvolvimento em escala, o custo e o cronograma para tal desenvolvimento?",null,null,null,null,null,null,null,null,null,null,null,9,true,1,9,1,"","",null,null,100,true]
[null,null,null,"E",null,100,"Foi incluída na documentação final o processo de parceria e de transferencia de conhecimento para industria? ",null,null,null,null,null,null,null,null,null,null,null,9,true,1,9,1,"","",null,null,100,true]
[null,null,null,"E",null,100,"Foi realizado plano de negócio para desenvolvimento da tecnologia?",null,null,null,null,null,null,null,null,null,null,null,9,true,1,9,1,"","",null,null,100,true]
[null,null,null,"E",null,100,"Foram realizadas publicações científicas e/ou patentes a respeito da tecnologia ?",null,null,null,null,null,null,null,null,null,null,null,9,true,1,9,1,"","",null,null,100,true]
[null,null,null,"E",null,100,"É possível reproduzir o mesmo projeto com mesmos requisitos? ",null,null,null,null,null,null,null,null,null,null,null,9,true,1,9,1,"","",null,null,100,true]
[null,null,null,null,null,null,null,null,null,null,null,null,null,null,null,null,null,null,null,"Máximo alcançado",null,{"$f":"COUNTIF(V164:V175,9)","v":12},{"$f":"SUM(W164:W175)","v":12},{"$f":"SUM(X164:X175)","v":18},{"$f":"IF(SUM(Y164:Y175)=X176,X176,1)","v":18},null,null,{"$f":"SUM(AB164:AB175)","v":1200}]
[null,null,"Comentários:",null,null,null,null,null,null,null,null,null,null,null,null,null,null,null,null,"Resultado TRL",null,{"$f":"(V176/W176)","v":1},null,{"$f":"(X176/Y176)","v":1}]
[null,null,null,null,null,null,null,null,null,null,null,null,null,null,null,null,null,null,null,null,null,{"$f":"W176*100","v":1200},{"$f":"AB176/V178","v":1}]
[null,null,null,null,null,null,null,null,null,null,null,null,null,null,null,null,null,null,null,null,null,{"$f":"IF(W178>=AB10,TRUE,FALSE)","v":true}]
[]
[]
[]
[]
[]
[]
[]
[]
[]
[]
[]
[null,null,"TRL",null,1,2,3,4,5,6,7,8,9]
[null,null,"TRL ESPAÇO",null,{"$f":"V29","v":true},{"$f":"V47","v":true},{"$f":"V66","v":true},{"$f":"V84","v":true},{"$f":"V103","v":true},{"$f":"V119","v":true},{"$f":"V137","v":true},{"$f":"V158","v":true},{"$f":"V179","v":true}]
[null,null,"TRL ISO",null,{"$f":"X27","v":1},{"$f":"X45","v":1},{"$f":"X64","v":1},{"$f":"X82","v":1},{"$f":"X101","v":1},{"$f":"X117","v":1},{"$f":"X135","v":1},{"$f":"X156","v":1},{"$f":"X177","v":1}]

{"sheet":"RESULTADO","index":5,"n_rows":55,"n_cols":17,"rows_kept":55,"cut":false,"hidden":false,"merged":[[3,6,5,25],[12,7,12,8],[13,7,13,8],[12,9,12,21],[13,9,13,21],[14,9,14,21],[59,14,59,17],[51,6,51,7],[50,6,50,7],[53,6,53,7],[54,6,54,7],[52,6,52,7],[21,5,21,9],[43,16,45,23],[14,7,14,8]]}
[null,null,null,null,null,null,null,null,null,null,null,""]
[]
[]
[null,null,null,null,null,null,"Status da Tecnologia"]
[]
[]
[]
[]
[]
[]
[]
[]
[null,null,null,null,null,null,null,"Nome da Tecnologia:",null,{"$f":"'ETAPA 1'!I15","v":0}]
[null,null,null,null,null,null,null,"Responsável pela Tecnologia:",null,{"$f":"'ETAPA 1'!P15","v":0}]
[null,null,null,null,null,null,null,"Data da Avaliação:",null,{"$f":"'ETAPA 1'!L16","v":"00:00:00"}]
[]
[]
[]
[]
[]
[]
[null,null,null,null,null,"Calculadora TRL IAE/ITA-2016-1",null,null,null,null,null,null,null,null," TRL NBR ISO 16290:2015"]
[]
[]
[]
[]
[]
[null,null,null,null,null,null,"TRL 9",{"$f":"Q53","v":true},null,null,null,null,null,null,"TRL 9",{"$f":"Q55","v":1}]
[null,null,null,null,null,null,"TRL 8",{"$f":"P53","v":true},null,null,null,null,null,null,"TRL 8",{"$f":"P55","v":1}]
[null,null,null,null,null,null,"TRL 7",{"$f":"O53","v":true},null,null,null,null,null,null,"TRL 7",{"$f":"O55","v":1}]
[null,null,null,null,null,null,"TRL 6",{"$f":"N53","v":true},null,null,null,null,null,null,"TRL 6",{"$f":"N55","v":1}]
[null,null,null,null,null,null,"TRL 5",{"$f":"M53","v":true},null,null,null,null,null,null,"TRL 5",{"$f":"M55","v":1}]
[null,null,null,null,null,null,"TRL 4",{"$f":"L53","v":true},null,null,null,null,null,null,"TRL 4",{"$f":"L55","v":1}]
[null,null,null,null,null,null,"TRL 3",{"$f":"K53","v":true},null,null,null,null,null,null,"TRL 3",{"$f":"K55","v":1}]
[null,null,null,null,null,null,"TRL 2",{"$f":"J53","v":true},null,null,null,null,null,null,"TRL 2",{"$f":"J55","v":1}]
[null,null,null,null,null,null,"TRL 1",{"$f":"I53","v":true},null,null,null,null,null,null,"TRL 1",{"$f":"I55","v":1}]
[]
[]
[]
[]
[]
[]
[]
[null,null,null,null,null,null,null,null,null,null,null,null,null,null,null,null,"NOVA AVALIAÇÃO"]
[]
[]
[]
[]
[]
[]
[null,null,null,null,null,null,"TRL",null,1,2,3,4,5,6,7,8,9]
[null,null,null,null,null,null,"TRL ESPAÇO",null,{"$f":"'ETAPA 2'!E192","v":true},{"$f":"'ETAPA 2'!F192","v":true},{"$f":"'ETAPA 2'!G192","v":true},{"$f":"'ETAPA 2'!H192","v":true},{"$f":"'ETAPA 2'!I192","v":true},{"$f":"'ETAPA 2'!J192","v":true},{"$f":"'ETAPA 2'!K192","v":true},{"$f":"'ETAPA 2'!L192","v":true},{"$f":"'ETAPA 2'!M192","v":true}]
[null,null,null,null,null,null,"TRL ESPAÇO FINAL",null,{"$f":"IF(I52=TRUE,TRUE,\"FALSO\")","v":true},{"$f":"IF(AND(J52=TRUE,I53=TRUE),TRUE,\"FALSO\")","v":true},true,true,true,true,true,true,true]
[null,null,null,null,null,null,"TRL ISO",null,{"$f":"'ETAPA 2'!E193","v":1},{"$f":"'ETAPA 2'!F193","v":1},{"$f":"'ETAPA 2'!G193","v":1},{"$f":"'ETAPA 2'!H193","v":1},{"$f":"'ETAPA 2'!I193","v":1},{"$f":"'ETAPA 2'!J193","v":1},{"$f":"'ETAPA 2'!K193","v":1},{"$f":"'ETAPA 2'!L193","v":1},{"$f":"'ETAPA 2'!M193","v":1}]
[null,null,null,null,null,null,"TRL ISSO FINAL",null,{"$f":"IF(I54=1,1,\"2\")","v":1},{"$f":"IF(AND(J54=1,I55),1,\"2\")","v":1},{"$f":"IF(AND(K54=1,J55),1,\"2\")","v":1},{"$f":"IF(AND(L54=1,K55=1),1,\"2\")","v":1},1,1,1,1,1]